bitfinex/quotes_BTCUSD_20250213
["timestamp","ask_amount","ask_price","bid_price","bid_amount"]
[1739466859537,0.00868327,95837.0,95836.0,0.41482065]
[1739466859690,0.00868327,95837.0,95836.0,0.41882065]
[1739466860063,0.00868327,95837.0,95836.0,0.41382065]
[1739466860245,0.00868327,95837.0,95836.0,1.27282065]
[1739466860441,0.00868327,95837.0,95836.0,1.27582065]
[1739466860647,0.00868327,95837.0,95836.0,1.28182065]
[1739466860919,0.00868327,95837.0,95836.0,1.27582065]
[1739466861722,0.00868327,95837.0,95836.0,1.26882065]
[1739466861930,0.00878977,95837.0,95836.0,1.26882065]
[1739466862316,0.0001065,95837.0,95836.0,1.26882065]
[1739466862498,0.0001065,95837.0,95836.0,1.28282065]
[1739466862699,0.0001065,95837.0,95836.0,1.27582065]
[1739466862901,0.0001065,95837.0,95836.0,1.28282065]
[1739466863101,0.0001065,95837.0,95836.0,1.27582065]
[1739466863805,0.0001065,95837.0,95836.0,1.28282065]
[1739466865885,0.00878977,95837.0,95836.0,1.28282065]
[1739466869592,0.00878977,95837.0,95836.0,1.27582065]
[1739466869734,0.00878977,95837.0,95836.0,0.96750365]
[1739466869937,0.00878977,95837.0,95836.0,0.58882065]
[1739466870139,0.00878977,95837.0,95836.0,0.59482065]
[1739466870343,0.00878977,95837.0,95836.0,0.58282065]
[1739466870573,0.00878977,95837.0,95836.0,0.59482065]
[1739466872392,0.00878977,95837.0,95836.0,0.58882065]
[1739466872589,0.00878977,95837.0,95836.0,0.59482065]
[1739466873024,0.00878977,95837.0,95836.0,0.43230365]
[1739466873221,0.00878977,95837.0,95836.0,0.4315273]
[1739466873594,0.00878977,95837.0,95836.0,0.33002365]
[1739466873919,0.00878977,95837.0,95836.0,0.32902365]
[1739466874124,0.00878977,95837.0,95836.0,0.32402365]
[1739466874329,0.00878977,95837.0,95836.0,0.33502365]
[1739466874822,0.00878977,95837.0,95836.0,0.33002365]
[1739466875405,0.00878977,95837.0,95836.0,0.32402365]
[1739466876012,0.00878977,95837.0,95836.0,0.33002365]
[1739466876180,0.00878977,95837.0,95836.0,0.33502365]
[1739466876717,0.01599532,95837.0,95836.0,0.33502365]
[1739466878594,0.01599532,95837.0,95836.0,0.49154065]
[1739466878779,0.00878977,95837.0,95836.0,0.5940443]
[1739466879632,0.00878977,95837.0,95836.0,0.6170443]
[1739466879844,0.00878977,95837.0,95836.0,0.6930443]
[1739466880998,0.00878977,95837.0,95836.0,0.7381443]
[1739466881214,0.00740719,95837.0,95836.0,0.7381443]
[1739466881758,0.00740719,95837.0,95836.0,1.2733443]
[1739466885477,0.00751369,95837.0,95836.0,1.2733443]
[1739466889835,0.02142654,95837.0,95836.0,1.1168273]
[1739466890039,0.02142654,95837.0,95836.0,1.2733443]
[1739466890242,0.02142654,95837.0,95836.0,1.2673443]
[1739466890554,0.02142654,95837.0,95836.0,1.2623443]
[1739466890755,0.02142654,95837.0,95836.0,1.2673443]
[1739466890965,0.02142654,95837.0,95836.0,1.2623443]
[1739466891431,0.02142654,95837.0,95836.0,1.2433443]
[1739466892113,0.02142654,95837.0,95836.0,1.2483443]
[1739466892532,0.02142654,95837.0,95836.0,1.2433443]
[1739466892675,0.02142654,95837.0,95836.0,1.2473443]
[1739466893074,0.02142654,95837.0,95836.0,1.2433443]
[1739466893283,0.02142654,95837.0,95836.0,1.2393443]
[1739466893612,0.02142654,95837.0,95836.0,1.2443443]
[1739466893820,0.02142654,95837.0,95836.0,0.7041443]
[1739466894018,0.02142654,95837.0,95836.0,0.7131443]
[1739466894230,0.02142654,95837.0,95836.0,0.7361443]
[1739466895300,0.02142654,95837.0,95836.0,0.7311443]
[1739466895503,0.02142654,95837.0,95836.0,0.7351443]
[1739466895942,0.02142654,95837.0,95836.0,0.7311443]
[1739466896190,0.02142654,95837.0,95836.0,0.7271443]
[1739466896327,0.00751369,95837.0,95836.0,0.7381443]
[1739466897164,0.09195202,95866.0,95837.0,0.023]
[1739466897370,0.208593,95881.0,95838.0,0.96150365]
[1739466897604,0.00720622,95865.0,95841.0,0.023]
[1739466897808,0.208613,95871.0,95844.0,0.023]
[1739466898018,0.00720622,95864.0,95859.0,0.156478]
[1739466898254,0.208617,95870.0,95859.0,0.156478]
[1739466898473,0.00720622,95863.0,95859.0,0.156478]
[1739466898711,0.001,95866.0,95859.0,0.156478]
[1739466898915,0.00720622,95862.0,95859.0,0.156478]
[1739466899121,0.208619,95869.0,95859.0,0.156478]
[1739466899557,0.00720622,95868.0,95859.0,0.157478]
[1739466899871,0.004,95866.0,95848.0,0.859]
[1739466900071,0.004,95866.0,95860.0,0.156477]
[1739466900288,0.001,95862.0,95858.0,0.15648]
[1739466900475,0.001,95862.0,95858.0,0.10250365]
[1739466901019,0.00720622,95861.0,95859.0,0.156479]
[1739466901261,0.00720622,95861.0,95860.0,0.25898165]
[1739466901514,0.004,95866.0,95860.0,0.17840365]
[1739466901757,0.004,95866.0,95865.0,0.15647]
[1739466902902,0.156454,95875.0,95868.0,0.156464]
[1739466903306,0.00723718,95874.0,95868.0,0.156464]
[1739466903731,0.00723718,95874.0,95869.0,0.156463]
[1739466903950,0.00723718,95874.0,95861.0,0.3238]
[1739466903951,0.00707933,95874.0,95873.0,0.156456]
[1739466904191,0.0001065,95878.0,95873.0,0.25895965]
[1739466904397,0.0001065,95878.0,95877.0,0.15645]
[1739466905357,0.0001065,95878.0,95877.0,0.25895365]
[1739466905560,0.0011065,95878.0,95877.0,0.33595365]
[1739466906304,0.0011065,95878.0,95877.0,0.35895365]
[1739466906578,0.0011065,95878.0,95877.0,1.41755365]
[1739466906709,0.0011065,95878.0,95877.0,1.09375365]
[1739466907331,0.0011065,95878.0,95877.0,1.09475365]
[1739466907537,0.0001065,95878.0,95877.0,1.09375365]
[1739466907769,0.0001065,95878.0,95877.0,1.09475365]
[1739466907972,0.0001065,95878.0,95877.0,1.09575365]
[1739466908375,0.0001065,95878.0,95877.0,1.09475365]
[1739466909013,0.0001065,95878.0,95877.0,1.15303052]
[1739466909180,0.0001065,95878.0,95877.0,1.15903052]
[1739466909518,0.0001065,95878.0,95877.0,1.10775365]
[1739466909665,0.0001065,95878.0,95877.0,1.13711688]
[1739466909868,0.0001065,95878.0,95877.0,1.13011688]
[1739466910065,0.0001065,95878.0,95877.0,1.13711688]
[1739466910452,0.0001065,95878.0,95877.0,1.16603052]
[1739466910726,0.0001065,95878.0,95877.0,1.17303052]
[1739466910949,0.0001065,95878.0,95877.0,1.15903052]
[1739466911145,0.0001065,95878.0,95877.0,1.12311688]
[1739466911373,0.0001065,95878.0,95877.0,1.13011688]
[1739466911569,0.0001065,95878.0,95877.0,1.10075365]
[1739466911709,0.0001065,95878.0,95877.0,1.09375365]
[1739466912115,0.0001065,95878.0,95877.0,1.10075365]
[1739466912379,0.0001065,95878.0,95877.0,1.10775365]
[1739466912543,0.0001065,95878.0,95877.0,1.45691688]
[1739466913117,0.0001065,95878.0,95877.0,1.48119166]
[1739466913324,1e-06,95879.0,95878.0,0.339448]
[1739466913538,1e-06,95879.0,95878.0,0.59721488]
[1739466913761,0.0004,95889.0,95888.0,0.306532]
[1739466913979,0.0004,95889.0,95888.0,1.41803565]
[1739466914180,0.0004,95889.0,95888.0,1.47631252]
[1739466914936,1e-06,95889.0,95888.0,1.48631252]
[1739466915534,1e-06,95889.0,95888.0,1.49331252]
[1739466916299,1e-06,95889.0,95888.0,1.50031252]
[1739466916508,1e-06,95889.0,95888.0,1.49331252]
[1739466916878,1e-06,95889.0,95888.0,1.50031252]
[1739466917080,0.0001065,95910.0,95907.0,0.457601]
[1739466917399,0.00408126,95909.0,95908.0,0.329399]
[1739466917566,0.00408126,95909.0,95908.0,1.29090265]
[1739466917753,0.00408126,95909.0,95908.0,0.58270265]
[1739466918317,0.00408126,95909.0,95908.0,0.60570265]
[1739466919162,0.00408126,95909.0,95908.0,0.68370265]
[1739466919271,0.00408126,95909.0,95908.0,1.27150265]
[1739466919708,0.00408126,95909.0,95908.0,1.42750265]
[1739466920142,0.00408126,95909.0,95908.0,1.45686588]
[1739466920343,0.00408126,95909.0,95908.0,1.42750265]
[1739466920758,0.00408126,95909.0,95908.0,1.42050265]
[1739466920977,0.00418776,95909.0,95908.0,1.42050265]
[1739466921444,0.00418776,95909.0,95908.0,1.42750265]
[1739466921855,0.00418776,95909.0,95908.0,1.41450265]
[1739466922265,0.00418776,95909.0,95908.0,1.42150265]
[1739466922469,0.00409563,95909.0,95908.0,1.42150265]
[1739466922703,0.0001065,95910.0,95909.0,0.329398]
[1739466922704,1.3e-07,95910.0,95909.0,0.329398]
[1739466922900,1.3e-07,95910.0,95909.0,0.5721338]
[1739466923529,1.3e-07,95910.0,95909.0,1.4311338]
[1739466924150,1.3e-07,95910.0,95909.0,1.4775338]
[1739466925285,6.3e-07,95917.0,95916.0,0.458086]
[1739466925488,6.3e-07,95917.0,95916.0,0.6185218]
[1739466925689,6.3e-07,95917.0,95916.0,0.56058965]
[1739466926253,1.3e-07,95926.0,95925.0,0.430172]
[1739466926389,2.3e-07,95935.0,95934.0,0.405957]
[1739466926620,2.3e-07,95935.0,95934.0,1.36746065]
[1739466927291,2.3e-07,95935.0,95934.0,1.41706065]
[1739466928447,2.3e-07,95935.0,95934.0,1.42406065]
[1739466928962,2.3e-07,95935.0,95934.0,1.41706065]
[1739466929973,2.3e-07,95935.0,95934.0,1.42406065]
[1739466930894,2.3e-07,95935.0,95934.0,1.29786065]
[1739466931093,2.3e-07,95935.0,95934.0,1.30486065]
[1739466931295,2.3e-07,95935.0,95934.0,0.97550365]
[1739466931500,2.3e-07,95935.0,95934.0,0.96850365]
[1739466931746,0.24459038,95935.0,95934.0,0.3378]
[1739466931936,0.23655523,95935.0,95934.0,0.3378]
[1739466932135,0.28978852,95935.0,95934.0,0.014]
[1739466932338,0.28978852,95935.0,95934.0,0.007]
[1739466933212,0.1,95931.0,95911.0,0.3238]
[1739466933411,0.156393,95912.0,95911.0,0.3238]
[1739466933638,0.156394,95911.0,95889.0,0.3238]
[1739466933811,0.156409,95903.0,95889.0,0.3238]
[1739466934048,0.208528,95910.0,95897.0,0.10250365]
[1739466934203,0.00785752,95902.0,95897.0,0.10250365]
[1739466934405,0.02234406,95902.0,95897.0,0.10250365]
[1739466934607,0.00785752,95901.0,95897.0,0.10250365]
[1739466934808,0.156416,95898.0,95897.0,0.10250365]
[1739466935207,0.00785752,95898.0,95897.0,0.10250365]
[1739466935421,0.156416,95898.0,95897.0,0.10250365]
[1739466935635,0.00785752,95898.0,95889.0,0.3238]
[1739466935842,0.156429,95890.0,95889.0,0.3238]
[1739466936047,0.00858025,95898.0,95889.0,0.3238]
[1739466936048,0.00785752,95897.0,95889.0,0.3238]
[1739466936295,0.00858025,95898.0,95889.0,0.3238]
[1739466936451,0.00785752,95896.0,95889.0,0.3238]
[1739466936693,0.156426,95892.0,95889.0,0.3238]
[1739466936894,0.156422,95894.0,95889.0,0.3238]
[1739466937216,0.208539,95905.0,95889.0,0.3238]
[1739466937391,0.00762948,95893.0,95889.0,0.3248]
[1739466937578,0.156408,95903.0,95889.0,0.3248]
[1739466937789,0.00762948,95892.0,95891.0,0.156427]
[1739466937998,0.156404,95905.0,95891.0,0.156427]
[1739466937999,0.208541,95905.0,95891.0,0.156427]
[1739466938206,0.00762948,95892.0,95891.0,0.156427]
[1739466938405,0.156416,95898.0,95890.0,0.25893265]
[1739466938610,0.312715,95934.0,95890.0,0.25893265]
[1739466938611,0.16425958,95929.0,95890.0,0.10250365]
[1739466938810,0.00762948,95897.0,95890.0,0.10250365]
[1739466939014,0.208552,95899.0,95890.0,0.10250365]
[1739466939257,0.156425,95893.0,95890.0,0.10250365]
[1739466939580,0.156429,95890.0,95889.0,0.3268]
[1739466939938,0.156429,95890.0,95889.0,0.3238]
[1739466940279,0.16405848,95890.0,95889.0,0.3238]
[1739466940728,0.16405848,95890.0,95889.0,0.3268]
[1739466941322,0.16405848,95890.0,95889.0,0.008]
[1739466941526,0.63750148,95890.0,95889.0,0.008]
[1739466941784,1.31604248,95890.0,95889.0,0.008]
[1739466941995,0.39055848,95890.0,95889.0,0.008]
[1739466942204,0.49306213,95890.0,95889.0,0.008]
[1739466942413,0.49306213,95890.0,95888.0,0.00022365]
[1739466942414,0.30643,95889.0,95888.0,0.00022365]
[1739466942616,1.273143,95889.0,95888.0,0.00022365]
[1739466942821,1.28071862,95889.0,95888.0,0.00022365]
[1739466943177,0.81706062,95889.0,95888.0,0.00022365]
[1739466943391,0.68063462,95889.0,95888.0,0.00022365]
[1739466943589,0.68063462,95889.0,95888.0,0.00322365]
[1739466943796,0.68063462,95889.0,95888.0,0.00622365]
[1739466944247,0.78313827,95889.0,95888.0,0.00622365]
[1739466944807,0.68063462,95889.0,95888.0,0.00622365]
[1739466945368,0.68063462,95889.0,95888.0,0.00022365]
[1739466945706,0.69363462,95889.0,95888.0,0.00222365]
[1739466945932,0.69363462,95889.0,95888.0,0.00122365]
[1739466946107,0.69363462,95889.0,95888.0,0.00022365]
[1739466946312,0.69263462,95889.0,95888.0,0.00122365]
[1739466946531,0.68763462,95889.0,95888.0,0.00122365]
[1739466946764,0.68763462,95889.0,95860.0,0.08370438]
[1739466946765,0.15646,95871.0,95860.0,0.08370438]
[1739466946963,0.30646,95871.0,95860.0,0.08370438]
[1739466947122,0.1,95869.0,95860.0,0.08370438]
[1739466947335,0.156476,95861.0,95860.0,0.08370438]
[1739466947534,1.491977,95861.0,95860.0,0.08370438]
[1739466947761,1.2385715,95861.0,95860.0,0.00022365]
[1739466947999,1.1847675,95861.0,95860.0,0.00022365]
[1739466948204,0.9263345,95861.0,95860.0,0.00022365]
[1739466948531,0.8828475,95861.0,95860.0,0.00022365]
[1739466948693,0.4124815,95861.0,95860.0,0.00022365]
[1739466949715,0.42102333,95861.0,95860.0,0.00322365]
[1739466950449,0.42102333,95861.0,95860.0,0.00622365]
[1739466950673,0.42102333,95861.0,95860.0,0.00322365]
[1739466951565,0.42102333,95861.0,95860.0,0.00022365]
[1739466951987,0.42102333,95861.0,95860.0,0.00122365]
[1739466952245,0.43468022,95861.0,95860.0,0.00122365]
[1739466952522,0.43468022,95861.0,95860.0,0.00222365]
[1739466953552,0.18618922,95861.0,95860.0,0.00222365]
[1739466953805,1.37085322,95861.0,95860.0,0.00222365]
[1739466954031,1.02262722,95861.0,95860.0,0.00222365]
[1739466954248,1.25212722,95861.0,95860.0,0.00222365]
[1739466954463,1.35463087,95861.0,95860.0,0.00222365]
[1739466955082,1.35463087,95861.0,95860.0,0.00122365]
[1739466955286,1.35863087,95861.0,95860.0,0.00122365]
[1739466955693,0.156512,95839.0,95836.0,0.00022365]
[1739466956043,0.16382383,95839.0,95836.0,0.00022365]
[1739466956253,0.156515,95837.0,95836.0,0.00022365]
[1739466956471,0.452462,95837.0,95836.0,0.00022365]
[1739466956673,0.45968042,95837.0,95836.0,0.00022365]
[1739466956975,0.40051542,95837.0,95836.0,0.00022365]
[1739466957532,0.00721842,95837.0,95836.0,0.00022365]
[1739466957657,0.16373342,95837.0,95836.0,0.00022365]
[1739466957857,0.27961742,95837.0,95836.0,0.00022365]
[1739466958100,0.00721842,95837.0,95836.0,0.00022365]
[1739466958316,0.00721842,95837.0,95836.0,0.00322365]
[1739466958515,0.02219872,95837.0,95836.0,0.00322365]
[1739466958717,0.32188414,95837.0,95836.0,0.00322365]
[1739466958917,0.32470614,95837.0,95836.0,0.00322365]
[1739466959387,0.02941714,95837.0,95836.0,0.00622365]
[1739466959586,0.18593214,95837.0,95836.0,0.00622365]
[1739466959795,0.32469514,95837.0,95836.0,0.00622365]
[1739466959996,0.18593214,95837.0,95836.0,0.00622365]
[1739466960178,0.17227525,95837.0,95836.0,0.00622365]
[1739466960430,0.01576025,95837.0,95836.0,0.00622365]
[1739466961086,0.16505683,95837.0,95836.0,0.00622365]
[1739466961293,0.15452325,95837.0,95836.0,0.00622365]
[1739466961510,0.11847425,95837.0,95836.0,0.00622365]
[1739466962046,0.01576025,95837.0,95836.0,0.00622365]
[1739466962247,0.17227525,95837.0,95836.0,0.00622365]
[1739466962648,0.27498925,95837.0,95836.0,0.00622365]
[1739466962872,0.31420425,95837.0,95836.0,0.00622365]
[1739466963078,0.27498925,95837.0,95836.0,0.00622365]
[1739466963481,0.27498925,95837.0,95836.0,0.16274065]
[1739466963482,0.11847425,95837.0,95836.0,0.16274065]
[1739466963655,0.01576025,95837.0,95836.0,0.3406443]
[1739466963929,0.00854183,95837.0,95836.0,0.4099443]
[1739466964662,0.00854183,95837.0,95836.0,0.4069443]
[1739466964870,0.00854183,95837.0,95836.0,0.4039443]
[1739466965073,0.00954183,95837.0,95836.0,1.4199443]
[1739466965287,0.00954183,95837.0,95836.0,1.4259443]
[1739466965691,0.15,95887.0,95837.0,0.023]
[1739466965900,0.157119,95886.0,95850.0,0.0696]
[1739466966113,0.208596,95879.0,95869.0,0.156462]
[1739466966326,0.2086,95877.0,95859.0,0.023]
[1739466966532,0.156455,95874.0,95867.0,0.156465]
[1739466966748,0.156455,95874.0,95868.0,0.10250365]
[1739466966965,0.156458,95872.0,95868.0,0.10250365]
[1739466967263,0.20861,95873.0,95855.0,0.5352]
[1739466967468,0.00727931,95871.0,95857.0,0.023]
[1739466967671,0.156454,95875.0,95868.0,0.156464]
[1739466967876,0.0072791,95870.0,95869.0,0.10250365]
[1739466968084,0.156452,95876.0,95870.0,0.156461]
[1739466968702,0.14721124,95880.0,95869.0,0.10250365]
[1739466968995,0.208596,95879.0,95869.0,0.10250365]
[1739466969237,0.14721124,95880.0,95869.0,0.10250365]
[1739466969412,0.001,95876.0,95874.0,0.0458]
[1739466969611,0.001,95876.0,95875.0,0.31110765]
[1739466969820,0.156437,95886.0,95875.0,0.10250365]
[1739466970025,0.002,95880.0,95870.0,0.0807]
[1739466970233,0.208604,95876.0,95870.0,0.18320365]
[1739466970430,0.002,95880.0,95870.0,0.18320365]
[1739466970648,0.158446,95880.0,95870.0,0.18320365]
[1739466970843,0.16483,95879.0,95870.0,0.18320365]
[1739466971009,0.16483,95879.0,95878.0,0.156448]
[1739466971434,0.156437,95885.0,95879.0,0.156446]
[1739466971677,0.27751,95883.0,95881.0,0.156443]
[1739466971808,0.27751,95884.0,95880.0,0.156445]
[1739466972010,0.0001065,95889.0,95871.0,0.10250365]
[1739466972011,0.330582,95885.0,95884.0,0.156439]
[1739466972259,0.0001065,95889.0,95888.0,0.235232]
[1739466972916,0.6578855,95889.0,95888.0,0.235232]
[1739466973129,0.0001065,95889.0,95888.0,0.235232]
[1739466973328,0.6578855,95889.0,95888.0,0.33773565]
[1739466973601,0.0001065,95889.0,95888.0,0.33773565]
[1739466974251,0.0001065,95889.0,95888.0,0.18130365]
[1739466974770,0.0001065,95889.0,95888.0,0.25893565]
[1739466974934,0.1565375,95889.0,95888.0,0.005]
[1739466975132,0.0073856,95889.0,95888.0,0.01]
[1739466975383,0.0073856,95889.0,95888.0,0.005]
[1739466975537,0.0073856,95889.0,95888.0,0.008]
[1739466975746,0.0073856,95889.0,95885.0,0.480237]
[1739466975943,0.0073856,95889.0,95888.0,0.003]
[1739466976154,0.7253706,95889.0,95888.0,0.006]
[1739466976356,0.7071146,95889.0,95888.0,0.006]
[1739466976734,0.87953888,95889.0,95888.0,0.006]
[1739466976937,0.8571146,95889.0,95888.0,0.006]
[1739466977360,0.7071146,95889.0,95888.0,0.003]
[1739466977585,0.2255696,95889.0,95888.0,0.006]
[1739466977787,0.1335306,95889.0,95888.0,0.006]
[1739466977995,0.1095006,95889.0,95888.0,0.003]
[1739466978335,0.1095006,95889.0,95888.0,0.156432]
[1739466978336,0.0073856,95889.0,95888.0,0.156432]
[1739466978720,0.0001065,95889.0,95888.0,0.156432]
[1739466978874,0.00866685,95889.0,95888.0,0.156432]
[1739466979269,0.00866685,95889.0,95888.0,0.157432]
[1739466979697,0.00866685,95889.0,95888.0,0.25993565]
[1739466980572,0.00866685,95889.0,95888.0,0.25893565]
[1739466980999,0.00866685,95889.0,95883.0,0.081]
[1739466981212,0.00866685,95889.0,95855.0,0.312972]
[1739466981213,0.15644,95884.0,95876.0,0.23265]
[1739466981416,0.00866685,95889.0,95879.0,0.10250365]
[1739466981620,0.00756155,95888.0,95879.0,0.10250365]
[1739466981823,0.21724185,95889.0,95879.0,0.10250365]
[1739466981824,0.00856035,95883.0,95879.0,0.10250365]
[1739466982027,0.156445,95880.0,95879.0,0.10250365]
[1739466982232,0.208595,95880.0,95871.0,0.859]
[1739466982415,0.00756155,95882.0,95872.0,0.10250365]
[1739466982658,0.14721124,95882.0,95871.0,0.859]
[1739466982863,0.156458,95872.0,95871.0,0.3238]
[1739466983285,0.00856035,95883.0,95871.0,0.3238]
[1739466983286,0.21615355,95881.0,95871.0,0.3238]
[1739466983488,0.156458,95872.0,95871.0,0.3238]
[1739466983692,0.1725799,95872.0,95871.0,0.3238]
[1739466983895,0.16501835,95872.0,95871.0,0.3238]
[1739466984101,0.1725799,95872.0,95871.0,0.3238]
[1739466985100,0.1725799,95872.0,95871.0,0.006]
[1739466985713,0.0161219,95872.0,95851.0,0.231592]
[1739466985915,0.0161219,95872.0,95850.0,0.08348073]
[1739466985916,0.14721124,95861.0,95850.0,0.08348073]
[1739466986359,0.00743185,95860.0,95849.0,0.09374702]
[1739466986559,0.208639,95859.0,95849.0,0.19625067]
[1739466986692,0.156485,95856.0,95849.0,0.10250365]
[1739466986892,0.00743185,95860.0,95849.0,0.10250365]
[1739466986893,0.156494,95850.0,95849.0,0.10250365]
[1739466987102,0.15577159,95860.0,95841.0,0.3238]
[1739466987326,0.00731175,95850.0,95844.0,0.156503]
[1739466987531,0.208648,95855.0,95844.0,0.156503]
[1739466987742,0.00731175,95849.0,95842.0,0.10250365]
[1739466987954,0.00731175,95849.0,95842.0,0.25900965]
[1739466988146,0.15577159,95860.0,95842.0,0.10250365]
[1739466988514,0.00856035,95848.0,95842.0,0.25901065]
[1739466988921,0.00731175,95847.0,95842.0,0.10250365]
[1739466989301,0.00856035,95848.0,95842.0,0.10250365]
[1739466989500,0.00731175,95846.0,95842.0,0.10250365]
[1739466989758,0.00856035,95846.0,95842.0,0.10250365]
[1739466989958,0.00731175,95845.0,95842.0,0.10550365]
[1739466990169,0.00731175,95845.0,95844.0,0.156504]
[1739466990367,0.00856035,95846.0,95844.0,0.156503]
[1739466990483,0.00856035,95846.0,95842.0,0.26200965]
[1739466990695,0.0158721,95845.0,95843.0,0.156505]
[1739466991070,0.00856035,95845.0,95843.0,0.156505]
[1739466991469,0.00856035,95845.0,95842.0,0.10950365]
[1739466991470,0.00856035,95845.0,95844.0,0.156504]
[1739466991673,0.00856035,95845.0,95843.0,0.156504]
[1739466991877,0.00856035,95845.0,95844.0,0.156504]
[1739466992721,0.00856035,95845.0,95843.0,0.004]
[1739466992928,0.00856035,95845.0,95843.0,0.26300865]
[1739466993131,0.00856035,95845.0,95844.0,0.156504]
[1739466995619,0.00856035,95845.0,95844.0,0.004]
[1739466996358,0.00856035,95845.0,95844.0,0.164504]
[1739466996563,0.00856035,95845.0,95844.0,0.160504]
[1739466996769,0.0158721,95845.0,95844.0,0.004]
[1739466996996,0.1723741,95845.0,95844.0,0.008]
[1739466997480,0.1723741,95845.0,95844.0,0.004]
[1739466997681,0.3844151,95845.0,95844.0,0.008]
[1739466998102,0.1723741,95845.0,95844.0,0.008]
[1739466998457,0.2786101,95845.0,95844.0,0.008]
[1739466999802,0.0158721,95845.0,95844.0,0.008]
[1739467000204,0.0158721,95845.0,95844.0,0.164504]
[1739467000395,0.00856035,95845.0,95844.0,0.008]
[1739467000656,0.16506235,95845.0,95844.0,0.008]
[1739467000865,1.6081451,95845.0,95844.0,0.008]
[1739467001071,1.6115421,95845.0,95844.0,0.008]
[1739467001286,0.6799321,95845.0,95844.0,0.008]
[1739467001483,0.6142041,95845.0,95844.0,0.008]
[1739467001691,0.5449551,95845.0,95844.0,0.008]
[1739467001897,0.4999061,95845.0,95844.0,0.008]
[1739467002100,0.4513571,95845.0,95844.0,0.004]
[1739467002708,0.156512,95839.0,95838.0,0.3238]
[1739467002922,0.17158538,95844.0,95837.0,0.00022365]
[1739467003131,0.156514,95838.0,95837.0,0.00022365]
[1739467003339,0.16371656,95838.0,95837.0,0.00022365]
[1739467004163,0.00720256,95838.0,95837.0,0.00022365]
[1739467004371,0.01576291,95838.0,95837.0,0.00022365]
[1739467004571,0.00856035,95838.0,95837.0,0.00222365]
[1739467004772,0.16507435,95838.0,95837.0,0.00222365]
[1739467004927,0.64311091,95838.0,95837.0,0.00222365]
[1739467005152,0.60681291,95838.0,95837.0,0.00222365]
[1739467005357,0.60681291,95838.0,95837.0,0.00422365]
[1739467005558,0.60681291,95838.0,95837.0,0.00222365]
[1739467005765,0.60681291,95838.0,95837.0,0.00422365]
[1739467005965,0.60681291,95838.0,95837.0,0.00222365]
[1739467006163,0.17227691,95838.0,95837.0,0.00222365]
[1739467006481,0.17227691,95838.0,95837.0,0.00422365]
[1739467006682,0.17227691,95838.0,95837.0,0.00222365]
[1739467006683,0.42035591,95838.0,95837.0,0.00222365]
[1739467006890,0.22064191,95838.0,95837.0,0.15873865]
[1739467007236,0.11796291,95838.0,95837.0,0.00422365]
[1739467008878,0.27447691,95838.0,95837.0,0.00422365]
[1739467009080,0.11796291,95838.0,95837.0,0.16073865]
[1739467009287,0.01576291,95838.0,95837.0,0.00422365]
[1739467009488,0.01576291,95838.0,95837.0,0.16073865]
[1739467010199,0.00856035,95838.0,95837.0,0.16073865]
[1739467010404,0.11976635,95838.0,95837.0,0.00422365]
[1739467010628,0.00856035,95838.0,95837.0,0.00422365]
[1739467010827,0.0157417,95838.0,95837.0,0.00422365]
[1739467011035,0.2859747,95838.0,95837.0,0.00422365]
[1739467011246,0.1177027,95838.0,95837.0,0.00422365]
[1739467011474,0.2742167,95838.0,95837.0,0.00422365]
[1739467014927,0.208697,95833.0,95821.0,0.1263]
[1739467015122,0.156533,95827.0,95821.0,0.1263]
[1739467015334,0.00718135,95826.0,95821.0,0.1263]
[1739467015537,0.00856035,95838.0,95821.0,0.1263]
[1739467015742,0.156531,95828.0,95821.0,0.1263]
[1739467015917,0.161916,95827.0,95821.0,0.1263]
[1739467016121,0.00712368,95826.0,95821.0,0.1343]
[1739467016329,0.156533,95827.0,95821.0,0.1303]
[1739467016523,0.16365768,95826.0,95821.0,0.1363]
[1739467016726,0.00812368,95826.0,95821.0,0.1323]
[1739467016884,0.01668403,95826.0,95821.0,0.1323]
[1739467017230,0.01668403,95826.0,95821.0,0.294841]
[1739467017402,0.01568403,95826.0,95821.0,0.1263]
[1739467017627,0.01568403,95826.0,95824.0,0.156536]
[1739467017830,0.00856035,95825.0,95821.0,0.1323]
[1739467018050,0.15654,95822.0,95821.0,0.1323]
[1739467018751,0.16366368,95822.0,95821.0,0.1383]
[1739467019353,0.17222403,95822.0,95821.0,0.1323]
[1739467019528,0.17222403,95822.0,95821.0,0.1303]
[1739467019730,0.17222403,95822.0,95821.0,0.0494]
[1739467019887,0.17222403,95822.0,95821.0,0.004]
[1739467020310,0.69129303,95822.0,95821.0,0.004]
[1739467020514,0.69129303,95822.0,95821.0,0.008]
[1739467020726,0.69129303,95822.0,95821.0,0.004]
[1739467021253,0.01568403,95822.0,95821.0,0.004]
[1739467021449,0.17222403,95822.0,95821.0,0.004]
[1739467021625,0.01568403,95822.0,95819.0,0.00022365]
[1739467021812,0.156543,95820.0,95819.0,0.00022365]
[1739467022006,0.722257,95820.0,95819.0,0.00022365]
[1739467022292,0.88612432,95820.0,95819.0,0.00022365]
[1739467022448,1.73747632,95820.0,95819.0,0.00022365]
[1739467022610,1.77826367,95820.0,95819.0,0.00022365]
[1739467022966,1.98076732,95820.0,95819.0,0.00022365]
[1739467023323,1.98376732,95820.0,95819.0,0.00022365]
[1739467023760,1.98676732,95820.0,95819.0,0.00022365]
[1739467023986,2.13676732,95820.0,95819.0,0.00022365]
[1739467024187,2.13076732,95820.0,95819.0,0.00022365]
[1739467024419,1.98540332,95820.0,95819.0,0.00022365]
[1739467024774,1.88289967,95820.0,95819.0,0.00022365]
[1739467025191,1.98540332,95820.0,95819.0,0.00022365]
[1739467025605,2.34830352,95820.0,95819.0,0.00022365]
[1739467026034,2.35130352,95820.0,95819.0,0.00022365]
[1739467026448,0.156579,95798.0,95797.0,0.08348073]
[1739467026869,0.156579,95798.0,95792.0,0.00022365]
[1739467026870,0.156586,95794.0,95792.0,0.00022365]
[1739467027276,0.155719,95794.0,95792.0,0.00022365]
[1739467027488,0.29056057,95794.0,95792.0,0.00022365]
[1739467028336,0.29912092,95794.0,95792.0,0.00022365]
[1739467028547,0.39912092,95794.0,95792.0,0.00022365]
[1739467028969,0.65162457,95794.0,95792.0,0.00022365]
[1739467029187,0.75412822,95794.0,95792.0,0.00022365]
[1739467029394,0.65262457,95794.0,95792.0,0.00022365]
[1739467030028,0.65362457,95794.0,95792.0,0.00022365]
[1739467030465,0.65262457,95794.0,95792.0,0.00022365]
[1739467030678,0.65262457,95794.0,95751.0,0.0004]
[1739467030679,0.326589,95792.0,95791.0,9e-08]
[1739467030903,0.82605905,95792.0,95791.0,9e-08]